fUST/lending_fUST_20251106
["ID","MTS","AMOUNT","RATE_DAILY","PERIOD"]
[393266679,1762404632463,-500.0,0.00024108,2]
[393266681,1762404632472,-488.51988918,0.00024108,2]
[393266683,1762404632480,-114.00139394,0.00024108,2]
[393266685,1762404632491,-385.99860606,0.00024108,2]
[393266687,1762404632500,-500.0,0.00024108,2]
[393266689,1762404632509,-500.0,0.00024108,2]
[393266690,1762404632518,-534.56530505,0.00024108,2]
[393266692,1762404632527,-9359.0582466,0.00024109,2]
[393266694,1762404632536,-6607.35674723,0.00024109,2]
[393266697,1762404632547,-3444.74211195,0.00024109,2]
[393266699,1762404632558,-956.23404994,0.00024109,2]
[393266701,1762404632568,-74707.91957458,0.00024109,2]
[393266703,1762404632577,-168.89781764,0.00024451,2]
[393266705,1762404632586,-1206.27244867,0.00024655,2]
[393266707,1762404632595,-150.84,0.00024769,2]
[393266709,1762404632604,-628.0,0.0002477,2]
[393266711,1762404632612,-986.0,0.0002477,2]
[393266713,1762404632621,-2165.0,0.0002477,2]
[393266715,1762404632630,-412.0,0.0002477,2]
[393266717,1762404632639,-3355.29555596,0.00024799,2]
[393266719,1762404632648,-1000.0,0.000248,5]
[393266721,1762404632657,-500.0,0.00024873,2]
[393266723,1762404632666,-4157.35325875,0.0002489,2]
[393266724,1762404632675,-29596.2222168,0.0002489,2]
[393266727,1762404632687,-314.5842607,0.0002489,2]
[393266729,1762404632701,-1114.72696981,0.0002489,2]
[393266731,1762404632711,-37950.63012788,0.0002489,2]
[393266734,1762404632722,-14222.32284281,0.0002489,2]
[393266871,1762404638222,-11825.08,0.00024099,10]
[393266872,1762404638234,-2711.5189462,0.0002489,2]
[393266873,1762404638246,-3479.6098573,0.0002489,2]
[393266874,1762404638258,-1896.94150928,0.0002489,2]
[393266875,1762404638276,-3266.15425307,0.0002489,2]
[393266888,1762404646619,-9854.24,0.0002488,10]
[393266889,1762404646629,-6106.75999984,0.0002489,2]
[393266890,1762404646889,-3316.63897699,0.0002489,2]
[393266891,1762404646902,-1980.61212347,0.0002489,2]
[393266903,1762405419779,434.62,0.00032876,120]
[393266964,1762405749529,995.239,0.00032877,120]
[393267051,1762405832400,-150.0,0.00019152,2]
[393267053,1762405832409,-260.0,0.00019152,2]
[393267055,1762405832419,-500.0,0.000192,2]
[393267057,1762405832428,-399.6403651,0.00019591,2]
[393267059,1762405832437,-150.0,0.00019616,2]
[393267061,1762405832446,-177.0,0.00021152,2]
[393267063,1762405832455,-204.0,0.00023152,2]
[393267065,1762405832464,-314.0,0.00023187,2]
[393267067,1762405832473,-500.0,0.000232,2]
[393267069,1762405832483,-168.0,0.0002384,2]
[393267071,1762405832496,-314.0,0.00023885,2]
[393267073,1762405832504,-685.0,0.00023991,2]
[393267075,1762405832513,-314.0,0.00023997,2]
[393267077,1762405832523,-150.5,0.00024,2]
[393267079,1762405832533,-314.0,0.00024105,2]
[393267081,1762405832542,-783.0,0.00024107,2]
[393267083,1762405832552,-1200.0,0.00024107,2]
[393267085,1762405832562,-46.12791709,0.00024108,2]
[393267087,1762405832576,-253.87208291,0.00024108,2]
[393267089,1762405832585,-371.48973302,0.00024108,2]
[393267092,1762405832596,-142.75245015,0.00024108,2]
[393267093,1762405832605,-323.32438357,0.00024108,2]
[393267580,1762405838568,-78.77663811,0.00024108,2]
[393267581,1762405838578,-500.0,0.00024108,2]
[393267582,1762405838588,-553.48421837,0.00024141,2]
[393267583,1762405838598,-281.61836723,0.00024141,2]
[393267584,1762405838609,-314.0,0.00024141,2]
[393267585,1762405838619,-10658.44307643,0.00024142,2]
[393267586,1762405838629,-314.0,0.00024404,2]
[393267587,1762405838639,-314.0,0.00024406,2]
[393267588,1762405838649,-314.0,0.00024488,2]
[393267589,1762405838659,-2554.2482381,0.00024516,2]
[393267590,1762405838669,-168.0,0.00024602,2]
[393267591,1762405838678,-314.0,0.0002461,2]
[393267592,1762405838687,-314.0,0.00024696,2]
[393267593,1762405838697,-314.0,0.000247,2]
[393267594,1762405838706,-374.0,0.00024766,2]
[393267595,1762405838715,-503.59308038,0.00024773,2]
[393267596,1762405838724,-500.0,0.00024776,2]
[393267597,1762405838734,-150.0,0.00024777,2]
[393267598,1762405838743,-986.0,0.00024777,2]
[393267599,1762405838753,-628.0,0.00024777,2]
[393267600,1762405838762,-2165.0,0.00024777,2]
[393267601,1762405838772,-412.0,0.00024777,2]
[393267602,1762405838781,-520.07819565,0.00024799,2]
[393267603,1762405838791,-276.4568576,0.00024799,2]
[393267604,1762405838800,-150.0,0.000248,2]
[393267605,1762405838809,-2236.86370398,0.000248,2]
[393267606,1762405838819,-16629.41303484,0.000248,2]
[393267607,1762405838828,-500.0,0.00024873,2]
[393267608,1762405838838,-495.08915476,0.00024873,2]
[393267609,1762405838847,-502.13630347,0.00024873,2]
[393267610,1762405838856,-575.71766445,0.0002488,10]
[393267611,1762405838869,-3459.91468453,0.0002488,10]
[393267618,1762405841827,-150.0,0.00024124,2]
[393267619,1762405841837,-636.79765102,0.0002488,10]
[393267620,1762405841846,-8157.1,0.0002488,10]
[393267621,1762405841856,-165.290696,0.0002489,7]
[393267622,1762405841865,-165.290696,0.0002489,7]
[393267623,1762405841875,-165.290696,0.0002489,7]
[393267624,1762405841883,-165.290696,0.0002489,7]
[393267625,1762405841892,-151.65586,0.0002489,7]
[393267626,1762405841902,-160.0,0.0002489,2]
[393267627,1762405841911,-151.0,0.0002489,7]
[393267628,1762405841919,-151.0,0.0002489,7]
[393267629,1762405841928,-151.0,0.0002489,7]
[393267630,1762405841937,-192.820591,0.0002489,7]
[393267631,1762405841947,-192.820591,0.0002489,7]
[393267632,1762405841957,-192.820591,0.0002489,7]
[393267633,1762405841965,-188.471883,0.0002489,7]
[393267634,1762405841975,-192.820591,0.0002489,7]
[393267635,1762405841984,-188.471883,0.0002489,7]
[393267636,1762405841993,-188.471883,0.0002489,7]
[393267637,1762405842002,-231.865511,0.0002489,7]
[393267638,1762405842011,-2511.31691732,0.0002489,2]
[393267639,1762405842033,-188.471883,0.0002489,7]
[393267640,1762405842042,-115542.99811705,0.0002489,2]
[393267671,1762406119890,158.4,0.000328,120]
[393267672,1762406120969,158.4,0.000328,120]
[393267673,1762406132920,158.4,0.000328,120]
[393267675,1762406207193,426.769621,0.00013699,2]
[393267677,1762406366112,485.75,0.00032877,120]
[393267678,1762406462324,328.2,0.00032877,120]
[393267706,1762406862435,12494.81029191,0.00018,2]
[393267781,1762407032573,-541.11646766,0.0002,2]
[393267789,1762407032632,-789.57339084,0.0002,2]
[393267802,1762407038588,-989.64376497,0.0002,2]
[393267803,1762407040746,-1000.0,0.0002,2]
[393267804,1762407040758,-420.0,0.0002,2]
[393267805,1762407040806,-518.47216824,0.0002,2]
[393267822,1762407043795,-652.86860609,0.0002,2]
[393267823,1762407043966,-587.3256022,0.0002,2]
[393267824,1762407043976,-946.070093,0.0002,2]
[393267825,1762407043986,-283.0,0.0002,2]
[393267826,1762407043996,-150.0,0.00020094,2]
[393267827,1762407044005,-426.769621,0.00020187,2]
[393267828,1762407044015,-1200.0,0.00021879,2]
[393267829,1762407044024,-500.0,0.0002188,2]
[393267830,1762407044034,-464.32602988,0.00021881,2]
[393267831,1762407044043,-188.54257621,0.00021881,2]
[393267832,1762407044052,-177.0,0.00022094,2]
[393267833,1762407044061,-635.05896472,0.00022167,2]
[393267834,1762407044071,-504.32276064,0.00022167,2]
[393267835,1762407044080,-1000.0,0.000223,2]
[393267836,1762407044089,-1000.0,0.000223,2]
[393267837,1762407044098,-655.30739875,0.000223,2]
[393267839,1762407047211,-344.69260125,0.000223,2]
[393267840,1762407047220,-1000.0,0.000223,2]
[393267841,1762407047230,-1000.0,0.000223,2]
[393267842,1762407047239,-317.57463054,0.000223,2]
[393267843,1762407047251,-682.42536946,0.000223,2]
[393267844,1762407047260,-1000.0,0.000223,2]
[393267845,1762407047269,-1000.0,0.000223,2]
[393267846,1762407047278,-423.47463054,0.000223,2]
[393267848,1762407148730,403.967196,0.00030137,120]
[393267849,1762407177670,155.94974464,0.000327,120]
[393267890,1762408012123,-502.42978113,0.000192,2]
[393267891,1762408012143,-150.0,0.0001953,2]
[393267892,1762408012164,-279.0,0.0001986,2]
[393267893,1762408012185,-177.0,0.0002153,2]
[393267894,1762408012207,-1110.54616509,0.00021924,2]
[393267895,1762408012229,-1200.0,0.00022298,2]
[393267896,1762408012250,-300.0,0.00022298,2]
[393267897,1762408012269,-1200.0,0.00022299,2]
[393267898,1762408012289,-300.0,0.00022299,2]
[393267899,1762408012309,-300.0,0.00022299,2]
[393267900,1762408012329,-300.0,0.00022299,2]
[393267901,1762408012349,-300.0,0.00022299,2]
[393267902,1762408012368,-153.0,0.000223,3]
[393267903,1762408012387,-153.0,0.000223,3]
[393267904,1762408012406,-153.0,0.000223,3]
[393267905,1762408012426,-153.0,0.000223,3]
[393267906,1762408012445,-153.0,0.000223,3]
[393267907,1762408012465,-153.0,0.000223,3]
[393267908,1762408012484,-153.0,0.000223,3]
[393267909,1762408012503,-176.68927709,0.000223,3]
[393267910,1762408012523,-153.0,0.000223,3]
[393267911,1762408012542,-151.0,0.000223,3]
[393267912,1762408012561,-153.0,0.000223,3]
[393267913,1762408012581,-151.0,0.000223,3]
[393267914,1762408012600,-153.0,0.000223,3]
[393267915,1762408012620,-153.0,0.000223,3]
[393267916,1762408012639,-153.0,0.000223,3]
[393267917,1762408012657,-168.34657869,0.000223,3]
[393267918,1762408012677,-6014.449061,0.000223,2]
[393267993,1762408231756,-230.82507551,0.00020316,5]
[393267995,1762408231766,-150.0,0.00020521,2]
[393267997,1762408231775,-298.0,0.00020521,2]
[393267999,1762408231784,-815.57337982,0.00021856,5]
[393268003,1762408231812,-4184.42662018,0.00021856,5]
[393268004,1762408231822,-120.84398602,0.00022,3]
[393268053,1762408237727,-29.37340473,0.00022,3]
[393268054,1762408237741,-1200.0,0.00022299,2]
[393268055,1762408237753,-166.0,0.000223,3]
[393268056,1762408237766,-166.0,0.000223,3]
[393268057,1762408237779,-166.0,0.000223,3]
[393268058,1762408237792,-166.0,0.000223,3]
[393268059,1762408237806,-153.0,0.000223,3]
[393268060,1762408237819,-153.0,0.000223,3]
[393268061,1762408237833,-153.0,0.000223,3]
[393268062,1762408237847,-332.0,0.000223,3]
[393268063,1762408237859,-299.07250437,0.000223,3]
[393268064,1762408237872,-332.0,0.000223,3]
[393268065,1762408237885,-332.0,0.000223,3]
[393268066,1762408237897,-332.0,0.000223,3]
[393268067,1762408237911,-166.0,0.000223,3]
[393268068,1762408237923,-332.0,0.000223,3]
[393268069,1762408237939,-166.0,0.000223,3]
[393268070,1762408237950,-332.0,0.000223,3]
[393268071,1762408237962,-172.0,0.000223,3]
[393268072,1762408237974,-332.0,0.000223,3]
[393268073,1762408237987,-332.0,0.000223,3]
[393268074,1762408238000,-332.0,0.000223,3]
[393268075,1762408238015,-332.0,0.000223,3]
[393268076,1762408238029,-332.0,0.000223,3]
[393268077,1762408238043,-332.0,0.000223,3]
[393268078,1762408238058,-332.0,0.000223,3]
[393268079,1762408238070,-332.0,0.000223,3]
[393268080,1762408238080,-332.0,0.000223,3]
[393268081,1762408238091,-332.0,0.000223,3]
[393268082,1762408238102,-332.0,0.000223,3]
[393268083,1762408238118,-332.0,0.000223,3]
[393268084,1762408238132,-332.0,0.000223,3]
[393268085,1762408238143,-332.0,0.000223,3]
[393268086,1762408238155,-332.0,0.000223,3]
[393268087,1762408238168,-332.0,0.000223,3]
[393268088,1762408238180,-332.0,0.000223,3]
[393268089,1762408238192,-185.57253807,0.000223,3]
[393268090,1762408238203,-3140.04199937,0.000223,2]
[393268091,1762408238215,-177.0,0.00022521,2]
[393268092,1762408238229,-252.30751752,0.0002284,2]
[393268093,1762408238240,-226.653695,0.00023808,2]
[393268094,1762408238252,-500.0,0.00024141,2]
[393268095,1762408238264,-9239.78807138,0.00024142,2]
[393268096,1762408238276,-1003.634495,0.000243,2]
[393268097,1762408238287,-1680.0,0.00024337,2]
[393268098,1762408238300,-304.93431672,0.00024363,2]
[393268099,1762408238312,-500.0,0.00024363,2]
[393268100,1762408238323,-170.16,0.00024388,6]
[393268101,1762408238335,-986.0,0.00024488,2]
[393268102,1762408238346,-2165.0,0.00024488,2]
[393268103,1762408238358,-628.0,0.00024488,2]
[393268104,1762408238370,-412.0,0.00024488,2]
[393268105,1762408238383,-4399.0,0.00024488,2]
[393268106,1762408238395,-204.0,0.00024521,2]
[393268107,1762408238406,-2248.05451878,0.0002458,2]
[393268108,1762408238418,-3395.80783301,0.0002465,2]
[393268109,1762408238430,-293.87323754,0.00024669,2]
[393268110,1762408238446,-4210.0,0.0002467,10]
[393268111,1762408238460,-4686.72586851,0.0002467,10]
[393268112,1762408238476,-1409.18413149,0.0002467,10]
[393268113,1762408238488,-5079.93,0.0002467,10]
[393268114,1762408238500,-49103.12639129,0.0002468,2]
[393268115,1762408238514,-1619.76769196,0.0002468,2]
[393268139,1762408243078,-519.87187344,0.0002468,2]
[393268140,1762408243523,-1624.051207,0.0002468,2]
[393268141,1762408243536,-63072.804941,0.0002468,2]
[393268142,1762408243547,-559.80659113,0.0002468,2]
[393268186,1762408246195,-1553.59001102,0.0002467,10]
[393268187,1762408246254,-2679.67998898,0.0002467,10]
[393268188,1762408246264,-13448.97350527,0.0002468,2]
[393268189,1762408246276,-1533.78185648,0.0002468,2]
[393268190,1762408246288,-7666.30938741,0.0002468,2]
[393268191,1762408246299,-1448.3096139,0.0002468,2]
[393268202,1762409182879,563.84864544,0.0003287,120]
[393268203,1762409201692,205.262572,0.0003287,120]
[393268246,1762409432070,-261.0,0.00019191,2]
[393268248,1762409432079,-150.0,0.00019191,2]
[393268250,1762409432088,-177.0,0.00021191,2]
[393268252,1762409432097,-251.48734532,0.00022289,2]
[393268254,1762409432107,-168.31711099,0.00022351,2]
[393268255,1762409432116,-42.29554369,0.00022437,2]
[393268312,1762409437856,-184.35815231,0.00022437,2]
[393268313,1762409437867,-204.0,0.00023191,2]
[393268314,1762409437876,-150.0,0.00023265,2]
[393268315,1762409437885,-168.0,0.00023776,2]
[393268316,1762409437895,-292.45059314,0.000239,2]
[393268327,1762409440110,-244.37773862,0.000239,2]
[393268329,1762409440120,-500.0,0.00023973,2]
[393268330,1762409440131,-482.26933119,0.00023973,2]
[393268331,1762409440140,-300.0,0.00023986,2]
[393268332,1762409440151,-270.84999041,0.00023986,2]
[393268333,1762409440171,-929.15000959,0.00023986,2]
[393268334,1762409440183,-500.0,0.00023986,2]
[393268335,1762409440192,-500.0,0.00023986,2]
[393268336,1762409440201,-500.0,0.00023986,2]
[393268337,1762409440211,-500.0,0.00023986,2]
[393268338,1762409440220,-75.46911996,0.00023986,2]
[393268339,1762409440233,-424.53088004,0.00023986,2]
[393268340,1762409440242,-500.0,0.00023986,2]
[393268341,1762409440251,-500.0,0.00023986,2]
[393268342,1762409440261,-250.0,0.00023986,2]
[393268343,1762409440269,-59.07916937,0.00023986,2]
[393268344,1762409440281,-440.92083063,0.00023986,2]
[393268345,1762409440290,-500.0,0.00023986,2]
[393268346,1762409440299,-500.0,0.00023986,2]
[393268347,1762409440309,-650.0,0.00023986,2]
[393268348,1762409440319,-205.71126628,0.00023989,2]
[393268349,1762409440328,-323.32438357,0.00023989,2]
[393268350,1762409440337,-35349.72018649,0.0002399,2]
[393268364,1762409443166,-5625.1242614,0.0002399,2]
[393268365,1762409443179,-22917.21345756,0.0002399,2]
[393268366,1762409443188,-215.32,0.00024,2]
[393268367,1762409443197,-215.32,0.00024,2]
[393268368,1762409443207,-215.32,0.00024,2]
[393268369,1762409443216,-215.32,0.00024,2]
[393268370,1762409443225,-215.32,0.00024,2]
[393268371,1762409443234,-168.0,0.00024019,2]
[393268372,1762409443243,-215.32,0.000241,2]
[393268373,1762409443253,-215.32,0.000241,2]
[393268374,1762409443262,-215.32,0.000241,2]
[393268375,1762409443271,-215.32,0.000241,2]
[393268376,1762409443280,-215.32,0.000241,2]
[393268377,1762409443289,-215.32,0.000241,2]
[393268378,1762409443299,-215.32,0.000241,2]
[393268379,1762409443308,-215.32,0.000241,2]
[393268380,1762409443318,-215.32,0.000241,2]
[393268381,1762409443327,-215.32,0.000242,2]
[393268382,1762409443338,-215.32,0.000242,2]
[393268383,1762409443357,-204.92502107,0.000242,2]
[393268442,1762409446517,-10.39497893,0.000242,2]
[393268443,1762409446528,-215.32,0.000242,2]
[393268444,1762409446537,-215.32,0.000242,2]
[393268445,1762409446548,-215.32,0.000242,2]
[393268446,1762409446557,-129.57468735,0.000242,2]
[393268449,1762409530281,500.0,0.00032,120]
[393268450,1762409567777,800.0,0.000324,120]
[393268451,1762409596322,866.0,0.0003244,120]
[393268452,1762409610384,500.0,0.0003244,120]
[393268453,1762409637610,500.0,0.0003244,120]
[393268456,1762409930849,384.092658,0.00013699,2]
[393268487,1762410381774,302.975397,0.00030137,120]
[393268505,1762410543421,778.0,0.00015,2]
[393268509,1762410569310,1000.0,0.00018,2]
[393268539,1762410632275,-266.0,0.00019386,2]
[393268540,1762410632284,-150.0,0.00019387,2]
[393268543,1762410632294,-384.092658,0.00020187,2]
[393268545,1762410632313,-177.0,0.00021386,2]
[393268547,1762410632325,-204.0,0.00023386,2]
[393268549,1762410632334,-158.4,0.000236,2]
[393268551,1762410632344,-158.4,0.000236,2]
[393268554,1762410632356,-1200.0,0.00023993,2]
[393268556,1762410632365,-250.0,0.00023994,2]
[393268558,1762410632375,-350.0,0.00023994,2]
[393268560,1762410632384,-202.75522428,0.00023994,2]
[393268561,1762410632393,-18377.8187164,0.00023995,2]
[393268563,1762410632403,-158.0,0.00024,4]
[393268566,1762410632413,-158.4,0.00024,3]
[393268567,1762410632422,-158.4,0.00024,4]
[393268570,1762410632432,-158.4,0.00024,5]
[393268572,1762410632441,-158.95948549,0.00024,5]
[393268574,1762410632450,-37232.77189565,0.00024142,2]
[393268576,1762410632459,-469.72479029,0.00024379,2]
[393268578,1762410632468,-2082.22374944,0.000244,2]
[393268579,1762410632477,-168.0,0.00024443,2]
[393268581,1762410632486,-168.0,0.00024465,2]
[393268583,1762410632496,-3527.73,0.00024469,10]
[393268586,1762410632506,-2939.77,0.00024469,10]
[393268587,1762410632515,-2449.81,0.00024469,10]
[393268590,1762410632525,-2041.51,0.00024469,10]
[393268592,1762410632534,-170.16073289,0.00024469,7]
[393268593,1762410632543,-2000.0,0.00024477,2]
[393268595,1762410632552,-2070.95,0.00024478,2]
[393268598,1762410632562,-685000.0,0.00024479,2]
[393268600,1762410632571,-151.0,0.00024479,7]
[393268602,1762410632580,-151.0,0.00024479,7]
[393268604,1762410632589,-151.0,0.00024479,7]
[393268605,1762410632599,-151.0,0.00024479,7]
[393268607,1762410632609,-151.0,0.00024479,7]
[393268609,1762410632619,-150.72,0.000245,2]
[393268612,1762410632629,-150.72,0.000245,2]
[393268614,1762410632638,-150.72,0.000245,2]
[393268615,1762410632647,-150.72,0.000245,2]
[393268618,1762410632656,-150.72,0.000245,2]
[393268620,1762410632666,-150.72,0.000245,2]
[393268622,1762410632675,-150.72,0.000245,2]
[393268624,1762410632684,-150.72,0.000245,2]
[393268626,1762410632694,-150.72,0.000245,2]
[393268627,1762410632703,-150.72,0.000245,2]
[393268629,1762410632712,-150.72,0.000245,2]
[393268631,1762410632721,-150.72,0.000245,2]
[393268633,1762410632731,-150.72,0.000245,2]
[393268635,1762410632740,-150.72,0.000245,2]
[393268637,1762410632750,-150.72,0.000245,2]
[393268655,1762410632884,-150.72,0.000245,2]
[393268657,1762410632929,-150.72,0.000245,2]
[393268659,1762410632939,-150.72,0.000245,2]
[393268661,1762410632948,-150.72,0.000245,2]
[393268663,1762410632958,-150.72,0.000245,2]
[393268664,1762410632968,-150.72,0.000245,2]
[393268665,1762410632977,-150.72,0.000245,2]
[393268666,1762410632987,-150.72,0.000245,2]
[393268667,1762410632996,-150.72,0.000245,2]
[393268668,1762410633005,-150.72,0.000245,2]
[393268669,1762410633014,-150.72,0.000245,2]
[393268670,1762410633023,-150.72,0.000245,2]
[393268671,1762410633032,-150.72,0.000245,2]
[393268672,1762410633042,-360.0,0.00024554,2]
[393268673,1762410633051,-150.0,0.00024578,2]
[393268674,1762410633060,-300.0,0.00024578,2]
[393268675,1762410633069,-450.0,0.00024578,2]
[393268676,1762410633079,-600.0,0.00024578,2]
[393268677,1762410633088,-750.0,0.00024578,2]
[393268678,1762410633097,-150.0,0.00024578,2]
[393268679,1762410633107,-300.0,0.00024578,2]
[393268680,1762410633116,-150.0,0.000248,2]
[393268681,1762410633125,-1000.0,0.000248,2]
[393268682,1762410633134,-150.0,0.000248,2]
[393268683,1762410633143,-374.0,0.00024804,2]
[393268684,1762410633153,-168.0,0.00024815,2]
[393268685,1762410633162,-500.0,0.00024873,2]
[393268686,1762410633171,-232.09,0.000249,7]
[393268687,1762410633180,-158.72,0.000249,14]
[393268688,1762410633189,-10899.72,0.000249,7]
[393268689,1762410633198,-151.0,0.000249,7]
[393268690,1762410633208,-153.769785,0.000249,7]
[393268691,1762410633216,-299.122723,0.000249,7]
[393268692,1762410633226,-244.029907,0.000249,7]
[393268693,1762410633235,-155.055146,0.000249,7]
[393268694,1762410633244,-220.272235,0.000249,7]
[393268695,1762410633253,-220.272235,0.000249,7]
[393268696,1762410633262,-220.272235,0.000249,7]
[393268697,1762410633272,-220.272235,0.000249,7]
[393268698,1762410633282,-220.272235,0.000249,7]
[393268699,1762410633290,-220.272235,0.000249,7]
[393268700,1762410633299,-151.0,0.000249,7]
[393268701,1762410633309,-237.673729,0.000249,7]
[393268702,1762410633322,-220.272235,0.000249,7]
[393268703,1762410633333,-220.272235,0.000249,7]
[393268704,1762410633342,-151.0,0.000249,2]
[393268705,1762410633351,-151.0,0.000249,2]
[393268706,1762410633367,-151.0,0.000249,2]
[393268707,1762410633376,-229.0,0.000249,2]
[393268708,1762410633385,-58754.4693175,0.000249,2]
[393268709,1762410633538,-114064.14802527,0.000249,2]
[393268710,1762410633550,-1410.72508389,0.000249,2]
[393268731,1762410638018,-534.94906441,0.00024379,2]
[393268732,1762410638030,-1581.13797745,0.00024379,2]
[393268733,1762410638041,-294.54076015,0.00024379,2]
[393268734,1762410638115,-6509.40098542,0.00024379,2]
[393268821,1762410640281,-24581.75999997,0.00024379,2]
[393269275,1762410644735,-1701.26,0.00024369,10]
[393269277,1762410644747,-66316.5142169,0.00024379,2]
[393269455,1762410646601,-212.50910858,0.00024378,4]
[393269457,1762410646611,-128.15348777,0.00024379,2]
[393269471,1762410646761,-350786.1191862,0.00024379,2]
[393269474,1762410646778,-422.748628,0.00024379,2]
[393269477,1762410646793,-623.89357415,0.00024379,2]
[393269479,1762410646809,-26507.67372874,0.00024379,2]
[393269482,1762410646825,-4530.99280629,0.00024379,2]
[393269484,1762410646841,-1497.25668317,0.00024379,2]
[393270079,1762411630592,10000.0,0.0003042,120]
[393270080,1762411636338,300.0,0.0003287,120]
[393270094,1762411832395,-315.0,0.00021078,2]
[393270096,1762411832404,-150.0,0.00021078,2]
[393270098,1762411832414,-451.6284209,0.00022971,2]
[393270099,1762411832423,-177.0,0.00023078,2]
[393270101,1762411832432,-160.0,0.00023943,2]
[393270103,1762411832442,-506.41220226,0.00023973,2]
[393270105,1762411832451,-500.0,0.00023973,2]
[393270107,1762411832460,-500.0,0.00023973,2]
[393270109,1762411832470,-300.0,0.00023974,2]
[393270111,1762411832479,-950.0,0.00023974,2]
[393270112,1762411832488,-500.0,0.00023975,2]
[393270114,1762411832498,-453.00196278,0.00023975,2]
[393270116,1762411832507,-500.0,0.00023975,2]
[393270118,1762411832516,-500.0,0.00023975,2]
[393270120,1762411832526,-500.0,0.00023975,2]
[393270122,1762411832535,-500.0,0.00023975,2]
[393270124,1762411832544,-501.0899998,0.00023975,2]
[393270126,1762411832554,-500.0,0.00023975,2]
[393270128,1762411832563,-500.0,0.00023975,2]
[393270130,1762411832572,-500.0,0.00023975,2]
[393270132,1762411832581,-500.0,0.00023975,2]
[393270134,1762411832589,-626.83407205,0.00023975,2]
[393270136,1762411832598,-500.0,0.00023975,2]
[393270138,1762411832608,-500.0,0.00023975,2]
[393270139,1762411832617,-474.57875831,0.00023975,2]
[393270141,1762411832626,-500.0,0.00023975,2]
[393270143,1762411832635,-500.0,0.00023975,2]
[393270146,1762411832645,-500.0,0.00023975,2]
[393270147,1762411832654,-500.0,0.00023975,2]
[393270148,1762411832663,-500.0,0.00023975,2]
[393270149,1762411832673,-500.0,0.00023975,2]
[393270150,1762411832682,-500.0,0.00023975,2]
[393270152,1762411832691,-500.0,0.00023975,2]
[393270153,1762411832700,-500.0,0.00023975,2]
[393270154,1762411832710,-493.4287323,0.00023975,2]
[393270155,1762411832718,-500.0,0.00023975,2]
[393270156,1762411832728,-500.0,0.00023975,2]
[393270157,1762411832737,-500.0,0.00023975,2]
[393270158,1762411832746,-500.0,0.00023975,2]
[393270159,1762411832755,-500.0,0.00023975,2]
[393270160,1762411832764,-500.0,0.00023975,2]
[393270161,1762411832773,-500.0,0.00023975,2]
[393270162,1762411832783,-500.0,0.00023975,2]
[393270163,1762411832792,-500.0,0.00023975,2]
[393270164,1762411832801,-500.0,0.00023975,2]
[393270165,1762411832811,-500.0,0.00023975,2]
[393270166,1762411832821,-500.0,0.00023975,2]
[393270167,1762411832831,-646.44480684,0.00023975,2]